Workbook

Sheet 农村低保
A1: 全县2025年10月农村低保名册
A2: 编制单位：安溪县民政局
A3: 乡镇 | B3: 户主姓名 | C3: 保障人数 | D3: 与户主关系 | E3: 低保对象姓名 | F3: 每人保障金额 | G3: 每户发放金额 | H3: 起始保障年月
A4: 凤城镇 | B4: 陈*波 | C4: 1 | D4: 本人 | E4: 陈*波 | F4: 845 | G4: =C4*F4 -> 845
A5: 凤城镇 | B5: 陈*凤 | C5: 1 | D5: 本人 | E5: 陈*凤 | F5: 845 | G5: =C5*F5 -> 845
A6: 凤城镇 | B6: 陈*钧 | C6: 1 | D6: 本人 | E6: 陈*钧 | F6: 592 | G6: =C6*F6 -> 592
A7: 凤城镇 | B7: 陈*祥 | C7: 1 | D7: 本人 | E7: 陈*祥 | F7: 423 | G7: =C7*F7 -> 423
A8: 凤城镇 | B8: 陈*明 | C8: 3 | D8: 本人 | E8: 陈*明 | F8: 845 | G8: =C8*F8 -> 2535
A9: 凤城镇 | B9: 陈*明 | D9: 配偶 | E9: 许*莲 | F9: 845 | H9: 201801
A10: 凤城镇 | B10: 陈*明 | D10: 女 | E10: 陈*华 | F10: 845
A11: 凤城镇 | B11: 陈*燕 | C11: 1 | D11: 本人 | E11: 陈*燕 | F11: 845 | G11: =C11*F11 -> 845 | H11: 202007
A12: 凤城镇 | B12: 陈*宝 | C12: 2 | D12: 本人 | E12: 陈*宝 | F12: 845 | G12: =C12*F12 -> 1690
A13: 凤城镇 | B13: 陈*宝 | D13: 父母 | E13: 谢*英 | F13: 845
A14: 凤城镇 | B14: 谢*红 | C14: 3 | D14: 本人 | E14: 谢*红 | F14: 845 | G14: =C14*F14 -> 2535
A15: 凤城镇 | B15: 谢*红 | D15: 女 | E15: 陈*华 | F15: 845
A16: 凤城镇 | B16: 谢*红 | D16: 女 | E16: 陈*珠 | F16: 845 | H16: 201801
A17: 凤城镇 | B17: 陈*国 | C17: 1 | D17: 本人 | E17: 陈*国 | F17: 845 | G17: =C17*F17 -> 845
A18: 凤城镇 | B18: 陈*英 | C18: 3 | D18: 本人 | E18: 陈*英 | F18: 592 | G18: =C18*F18 -> 1776 | H18: 202004
A19: 凤城镇 | B19: 陈*英 | D19: 子 | E19: 陈*峰 | F19: 592 | H19: 202004
A20: 凤城镇 | B20: 陈*英 | D20: 女 | E20: 陈*清 | F20: 592 | H20: 202004
A21: 凤城镇 | B21: 陈*楷 | C21: 4 | D21: 本人 | E21: 陈*楷 | F21: 592 | G21: =C21*F21 -> 2368 | H21: 202103
A22: 凤城镇 | B22: 陈*楷 | D22: 配偶 | E22: 王*娟 | F22: 592 | H22: 202103
A23: 凤城镇 | B23: 陈*楷 | D23: 子 | E23: 陈*栋 | F23: 592 | H23: 202103
A24: 凤城镇 | B24: 陈*楷 | D24: 女 | E24: 陈*荧 | F24: 592 | H24: 202103
A25: 凤城镇 | B25: 许*萍 | C25: 3 | D25: 本人 | E25: 许*萍 | F25: 592 | G25: =C25*F25 -> 1776 | H25: 202109
A26: 凤城镇 | B26: 许*萍 | D26: 子 | E26: 陈*豪 | F26: 592 | H26: 202109
A27: 凤城镇 | B27: 许*萍 | D27: 女 | E27: 陈*妍 | F27: 592 | H27: 202109
A28: 凤城镇 | B28: 陈*恭 | C28: 1 | D28: 本人 | E28: 陈*恭 | F28: 845 | G28: =C28*F28 -> 845
A29: 凤城镇 | B29: 陈*见 | C29: 1 | D29: 本人 | E29: 陈*见 | F29: 592 | G29: =C29*F29 -> 592
A30: 凤城镇 | B30: 陈*法 | C30: 1 | D30: 本人 | E30: 陈*法 | F30: 592 | G30: =C30*F30 -> 592 | H30: 201810
A31: 凤城镇 | B31: 陈*发 | C31: 3 | D31: 本人 | E31: 陈*发 | F31: 845 | G31: =C31*F31 -> 2535 | H31: 201810
A32: 凤城镇 | B32: 陈*发 | D32: 父母 | E32: 陈*成 | F32: 845 | H32: 201909
A33: 凤城镇 | B33: 陈*发 | D33: 父母 | E33: 谢*叶 | F33: 845 | H33: 201909
A34: 凤城镇 | B34: 陈*树 | C34: 1 | D34: 本人 | E34: 陈*树 | F34: 845 | G34: =C34*F34 -> 845 | H34: 201901
A35: 凤城镇 | B35: 陈*青 | C35: 1 | D35: 本人 | E35: 陈*青 | F35: 592 | G35: 592
A36: 凤城镇 | B36: 陈*生 | C36: 1 | D36: 本人 | E36: 陈*生 | F36: 592 | G36: 592
A37: 凤城镇 | B37: 谢*环 | C37: 1 | D37: 本人 | E37: 谢*环 | F37: 845 | G37: 845 | H37: 201601
A38: 凤城镇 | B38: 陈*幼 | C38: 1 | D38: 本人 | E38: 陈*幼 | F38: 592 | G38: 592
A39: 凤城镇 | B39: 陈*碧 | C39: 1 | D39: 本人 | E39: 陈*碧 | F39: 845 | G39: 845 | H39: 200912
A40: 凤城镇 | B40: 陈*兴 | C40: 1 | D40: 本人 | E40: 陈*兴 | F40: 592 | G40: 592 | H40: 202005
A41: 凤城镇 | B41: 谢*丽 | C41: 1 | D41: 本人 | E41: 谢*丽 | F41: 592 | G41: 592
A42: 凤城镇 | B42: 谢*丽 | C42: 1 | D42: 本人 | E42: 谢*丽 | F42: 845 | G42: 845
A43: 凤城镇 | B43: 谢*真 | C43: 1 | D43: 本人 | E43: 谢*真 | F43: 592 | G43: 592
A44: 凤城镇 | B44: 陈*艳 | C44: 1 | D44: 本人 | E44: 陈*艳 | F44: 592 | G44: =C44*F44 -> 592
A45: 凤城镇 | B45: 陈*平 | C45: 2 | D45: 本人 | E45: 陈*平 | F45: 592 | G45: 1184
A46: 凤城镇 | B46: 陈*平 | D46: 配偶 | E46: 许*叶 | F46: 592
A47: 凤城镇 | B47: 陈*桢 | C47: 1 | D47: 本人 | E47: 陈*桢 | F47: 845 | G47: =C47*F47 -> 845
A48: 凤城镇 | B48: 陈*玉 | C48: 2 | D48: 本人 | E48: 陈*玉 | F48: 592 | G48: =C48*F48 -> 1184 | H48: 202102
A49: 凤城镇 | B49: 陈*玉 | D49: 女 | E49: 陈*颖 | F49: 592 | H49: 202102
A50: 凤城镇 | B50: 陈*龙 | C50: 3 | D50: 本人 | E50: 陈*龙 | F50: 592 | G50: =C50*F50 -> 1776 | H50: 201909
A51: 凤城镇 | B51: 陈*龙 | D51: 配偶 | E51: 谢*美 | F51: 592 | H51: 201909
A52: 凤城镇 | B52: 陈*龙 | D52: 子 | E52: 陈*彬 | F52: 592 | H52: 201909
A53: 凤城镇 | B53: 陈*忠 | C53: 2 | D53: 本人 | E53: 陈*忠 | F53: 592 | G53: =C53*F53 -> 1184 | H53: 201909
A54: 凤城镇 | B54: 陈*忠 | D54: 配偶 | E54: 谢*花 | F54: 592 | H54: 201909
A55: 凤城镇 | B55: 李*平 | C55: 1 | D55: 本人 | E55: 李*平 | F55: 592 | G55: =C55*F55 -> 592 | H55: 202002
A56: 凤城镇 | B56: 吴*明 | C56: 1 | D56: 本人 | E56: 吴*明 | F56: 423 | G56: =C56*F56 -> 423
A57: 凤城镇 | B57: 陈*发 | C57: 4 | D57: 本人 | E57: 陈*发 | F57: 845 | G57: =C57*F57 -> 3380
A58: 凤城镇 | B58: 陈*发 | D58: 子 | E58: 陈*林 | F58: 845
A59: 凤城镇 | B59: 陈*发 | D59: 子 | E59: 陈*海 | F59: 845
A60: 凤城镇 | B60: 陈*发 | D60: 子 | E60: 陈*生 | F60: 845
A61: 凤城镇 | B61: 许*雪 | C61: 1 | D61: 本人 | E61: 许*雪 | F61: 845 | G61: =C61*F61 -> 845
A62: 凤城镇 | B62: 吴*同 | C62: 3 | D62: 本人 | E62: 吴*同 | F62: 845 | G62: =C62*F62 -> 2535
A63: 凤城镇 | B63: 吴*同 | D63: 子 | E63: 吴* | F63: 845 | H63: 202002
A64: 凤城镇 | B64: 吴*同 | D64: 父母 | E64: 陈*英 | F64: 845
A65: 凤城镇 | B65: 王*杰 | C65: 2 | D65: 本人 | E65: 王*杰 | F65: 592 | G65: =C65*F65 -> 1184
A66: 凤城镇 | B66: 王*杰 | D66: 配偶 | E66: 谢*娣 | F66: 592
A67: 凤城镇 | B67: 谢*羽 | C67: 2 | D67: 本人 | E67: 谢*羽 | F67: 423 | G67: =C67*F67 -> 846
A68: 凤城镇 | B68: 谢*羽 | D68: 配偶 | E68: 何*珍 | F68: 423
A69: 凤城镇 | B69: 林*贵 | C69: 1 | D69: 本人 | E69: 林*贵 | F69: 592 | G69: =C69*F69 -> 592
A70: 凤城镇 | B70: 谢*钗 | C70: 3 | D70: 本人 | E70: 谢*钗 | F70: 845 | G70: =C70*F70 -> 2535
A71: 凤城镇 | B71: 谢*钗 | D71: 孙女 | E71: 王*娟 | F71: 845
A72: 凤城镇 | B72: 谢*钗 | D72: 孙子 | E72: 王*杰 | F72: 845
A73: 凤城镇 | B73: 林*山 | C73: 1 | D73: 本人 | E73: 林*山 | F73: 592 | G73: =C73*F73 -> 592 | H73: 201807
A74: 凤城镇 | B74: 林*青 | C74: 1 | D74: 本人 | E74: 林*青 | F74: 845 | G74: 845 | H74: 202206
A75: 凤城镇 | B75: 陈*碰 | C75: 1 | D75: 本人 | E75: 陈*碰 | F75: 845 | G75: 845 | H75: 202206
A76: 凤城镇 | B76: 陈*红 | C76: 1 | D76: 本人 | E76: 陈*红 | F76: 845 | G76: 845 | H76: 202209
A77: 凤城镇 | B77: 陈*水 | C77: 1 | D77: 本人 | E77: 陈*水 | F77: 845 | G77: 845 | H77: 202212
A78: 凤城镇 | B78: 陈*耿 | C78: 3 | D78: 本人 | E78: 陈*耿 | F78: 592 | G78: 1776 | H78: 202309
A79: 凤城镇 | B79: 陈*耿 | D79: 母亲 | E79: 李*凤 | F79: 592 | H79: 202309
A80: 凤城镇 | B80: 陈*耿 | D80: 弟弟 | E80: 陈*钰 | F80: 592 | H80: 202309
A81: 凤城镇 | B81: 谢*瑶 | C81: 1 | D81: 本人 | E81: 谢*瑶 | F81: 845 | G81: =C81*F81 -> 845 | H81: 202310
A82: 凤城镇 | B82: 苏*菊 | C82: 3 | D82: 本人 | E82: 苏*菊 | F82: 592 | G82: =C82*F82 -> 1776 | H82: 202311
A83: 凤城镇 | B83: 苏*菊 | D83: 母子 | E83: 陈*福 | F83: 592 | H83: 202311
A84: 凤城镇 | B84: 苏*菊 | D84: 母子 | E84: 陈*霖 | F84: 592 | H84: 202311
A85: 凤城镇 | B85: 陈*发 | C85: 2 | D85: 本人 | E85: 陈*发 | F85: 592 | G85: 1184 | H85: 202311
A86: 凤城镇 | B86: 陈*发 | D86: 配偶 | E86: 王*英 | F86: 592 | H86: 202311
A87: 凤城镇 | B87: 陈*法 | C87: 1 | D87: 本人 | E87: 陈*法 | F87: 592 | G87: 592 | H87: 202311
A88: 凤城镇 | B88: 陈*明 | C88: 3 | D88: 本人 | E88: 陈*明 | F88: 592 | G88: 1776 | H88: 202311
A89: 凤城镇 | B89: 陈*明 | D89: 配偶 | E89: 陈*萍 | F89: 592 | H89: 202311
A90: 凤城镇 | B90: 陈*明 | D90: 儿子 | E90: 陈*强 | F90: 592 | H90: 202311
A91: 凤城镇 | B91: 陈*火 | C91: 2 | D91: 本人 | E91: 陈*火 | F91: 592 | G91: =C91*F91 -> 1184 | H91: 202312
A92: 凤城镇 | B92: 陈*火 | D92: 配偶 | E92: 许*春 | F92: 592 | H92: 202312
A93: 凤城镇 | B93: 陈*雀 | C93: 3 | D93: 本人 | E93: 陈*雀 | F93: 592 | G93: =C93*F93 -> 1776 | H93: 202401
A94: 凤城镇 | B94: 陈*雀 | D94: 儿子 | E94: 陈*垚 | F94: 592 | H94: 202401
A95: 凤城镇 | B95: 陈*雀 | D95: 女儿 | E95: 陈*静 | F95: 592 | H95: 202401
A96: 凤城镇 | B96: 陈*志 | C96: 1 | D96: 本人 | E96: 陈*志 | F96: 845 | G96: =C96*F96 -> 845 | H96: 202404
A97: 凤城镇 | B97: 陈*来 | C97: 1 | D97: 本人 | E97: 陈*来 | F97: 845 | G97: =C97*F97 -> 845 | H97: 202406
A98: 凤城镇 | B98: 李*珍 | C98: 4 | D98: 本人 | E98: 李*珍 | F98: 423 | G98: =C98*F98 -> 1692 | H98: 202408
A99: 凤城镇 | B99: 李*珍 | D99: 祖孙 | E99: 陈*琛 | F99: 423 | H99: 202408
A100: 凤城镇 | B100: 李*珍 | D100: 祖孙 | E100: 陈*缘 | F100: 423 | H100: 202408
A101: 凤城镇 | B101: 李*珍 | D101: 祖孙 | E101: 陈*妍 | F101: 423 | H101: 202408
A102: 凤城镇 | B102: 林*敏 | C102: 1 | D102: 本人 | E102: 林*敏 | F102: 845 | G102: =C102*F102 -> 845 | H102: 202411
A103: 凤城镇 | B103: 陈*礼 | C103: 3 | D103: 本人 | E103: 陈*礼 | F103: 592 | G103: =C103*F103 -> 1776 | H103: 202412
A104: 凤城镇 | B104: 陈*礼 | E104: 陈*萍 | F104: 592 | H104: 202412
A105: 凤城镇 | B105: 陈*礼 | E105: 陈*杰 | F105: 592 | H105: 202412
A106: 凤城镇 | B106: 许*妹 | C106: 3 | D106: 本人 | E106: 许*妹 | F106: 592 | G106: =C106*F106 -> 1776 | H106: 202504
A107: 凤城镇 | B107: 许*妹 | D107: 儿子 | E107: 陈*灿 | F107: 592 | H107: 202504
A108: 凤城镇 | B108: 许*妹 | D108: 女儿 | E108: 陈*煊 | F108: 592 | H108: 202504
A109: 城厢镇 | B109: 谢*兴 | C109: 1 | D109: 本人 | E109: 谢*兴 | F109: 592 | G109: =C109*F109 -> 592 | H109: 201804
A110: 城厢镇 | B110: 许*师 | C110: 1 | D110: 本人 | E110: 许*师 | F110: 845 | G110: =C110*F110 -> 845
A111: 城厢镇 | B111: 陈*华 | C111: 2 | D111: 本人 | E111: 陈*华 | F111: 423 | G111: =C111*F111 -> 846 | H111: 201907
A112: 城厢镇 | B112: 陈*华 | D112: 祖父 | E112: 许*允 | F112: 423 | H112: 202003
A113: 城厢镇 | B113: 许*深 | C113: 1 | D113: 本人 | E113: 许*深 | F113: 845 | G113: =C113*F113 -> 845
A114: 城厢镇 | B114: 梁*云 | C114: 2 | D114: 本人 | E114: 梁*云 | F114: 423 | G114: =C114*F114 -> 846 | H114: 201907
A115: 城厢镇 | B115: 梁*云 | D115: 子 | E115: 郑*海 | F115: 423 | H115: 201907
A116: 城厢镇 | B116: 梁*云 | C116: 1 | D116: 本人 | E116: 梁*云 | F116: 592 | G116: =C116*F116 -> 592 | H116: 201807
A117: 城厢镇 | B117: 郭*枝 | C117: 1 | D117: 本人 | E117: 郭*枝 | F117: 592 | G117: =C117*F117 -> 592
A118: 城厢镇 | B118: 许*娟 | C118: 1 | D118: 本人 | E118: 许*娟 | F118: 845 | G118: =C118*F118 -> 845 | H118: 202009
A119: 城厢镇 | B119: 许*华 | C119: 2 | D119: 本人 | E119: 许*华 | F119: 423 | G119: =C119*F119 -> 846
A120: 城厢镇 | B120: 许*华 | D120: 子 | E120: 谢*源 | F120: 423
A121: 城厢镇 | B121: 许*笔 | C121: 2 | D121: 本人 | E121: 许*笔 | F121: 423 | G121: =C121*F121 -> 846
A122: 城厢镇 | B122: 许*笔 | D122: 孙子 | E122: 许*艺 | F122: 423 | H122: 201906
A123: 城厢镇 | B123: 许*古 | C123: 1 | D123: 本人 | E123: 许*古 | F123: 592 | G123: =C123*F123 -> 592
A124: 城厢镇 | B124: 吴*进 | C124: 1 | D124: 本人 | E124: 吴*进 | F124: 845 | G124: =C124*F124 -> 845 | H124: 201601
A125: 城厢镇 | B125: 许*源 | C125: 4 | D125: 本人 | E125: 许*源 | F125: 423 | G125: =C125*F125 -> 1692
A126: 城厢镇 | B126: 许*源 | D126: 配偶 | E126: 陈*林 | F126: 423
A127: 城厢镇 | B127: 许*源 | D127: 子 | E127: 许*超 | F127: 423
A128: 城厢镇 | B128: 许*源 | D128: 女 | E128: 许*婷 | F128: 423
A129: 城厢镇 | B129: 许*坪 | C129: 1 | D129: 本人 | E129: 许*坪 | F129: 845 | G129: =C129*F129 -> 845
A130: 城厢镇 | B130: 陈*云 | C130: 2 | D130: 本人 | E130: 陈*云 | F130: 592 | G130: =C130*F130 -> 1184
A131: 城厢镇 | B131: 陈*云 | D131: 配偶 | E131: 谢*清 | F131: 592
A132: 城厢镇 | B132: 许*红 | C132: 1 | D132: 本人 | E132: 许*红 | F132: 592 | G132: =C132*F132 -> 592
A133: 城厢镇 | B133: 吴*强 | C133: 1 | D133: 本人 | E133: 吴*强 | F133: 592 | G133: =C133*F133 -> 592
A134: 城厢镇 | B134: 谢*雨 | C134: 2 | D134: 本人 | E134: 谢*雨 | F134: 592 | G134: =C134*F134 -> 1184
A135: 城厢镇 | B135: 谢*雨 | D135: 兄弟姐妹 | E135: 谢*波 | F135: 592
A136: 城厢镇 | B136: 吴*庆 | C136: 1 | D136: 本人 | E136: 吴*庆 | F136: 592 | G136: =C136*F136 -> 592 | H136: 201601
A137: 城厢镇 | B137: 许*杰 | C137: 2 | D137: 本人 | E137: 许*杰 | F137: 423 | G137: =C137*F137 -> 846
A138: 城厢镇 | B138: 许*杰 | D138: 兄弟姐妹 | E138: 许*芳 | F138: 423
A139: 城厢镇 | B139: 许*福 | C139: 1 | D139: 本人 | E139: 许*福 | F139: 592 | G139: =C139*F139 -> 592
A140: 城厢镇 | B140: 许*环 | C140: 1 | D140: 本人 | E140: 许*环 | F140: 592 | G140: =C140*F140 -> 592 | H140: 201907
A141: 城厢镇 | B141: 许*灵 | C141: 2 | D141: 本人 | E141: 许*灵 | F141: 592 | G141: =C141*F141 -> 1184 | H141: 201901
A142: 城厢镇 | B142: 许*灵 | D142: 其他 | E142: 许*雯 | F142: 592 | H142: 201901
A143: 城厢镇 | B143: 许*铭 | C143: 2 | D143: 本人 | E143: 许*铭 | F143: 423 | G143: =C143*F143 -> 846 | H143: 201904
A144: 城厢镇 | B144: 许*铭 | D144: 子 | E144: 许*恒 | F144: 423 | H144: 201904
A145: 城厢镇 | B145: 吴*玲 | C145: 5 | D145: 本人 | E145: 吴*玲 | F145: 592 | G145: =C145*F145 -> 2960 | H145: 201904
A146: 城厢镇 | B146: 吴*玲 | D146: 配偶 | E146: 许*树 | F146: 592 | H146: 201904
A147: 城厢镇 | B147: 吴*玲 | D147: 女 | E147: 许*茹 | F147: 592 | H147: 202106
A148: 城厢镇 | B148: 吴*玲 | D148: 女 | E148: 许*鑫 | F148: 592 | H148: 201904
A149: 城厢镇 | B149: 吴*玲 | D149: 父母 | E149: 陈*丽 | F149: 592 | H149: 202010
A150: 城厢镇 | B150: 许*烨 | C150: 2 | D150: 本人 | E150: 许*烨 | F150: 423 | G150: =C150*F150 -> 846 | H150: 201904
A151: 城厢镇 | B151: 许*烨 | D151: 兄弟姐妹 | E151: 许*妍 | F151: 423 | H151: 201904
A152: 城厢镇 | B152: 许*兰 | C152: 2 | D152: 本人 | E152: 许*兰 | F152: 423 | G152: =C152*F152 -> 846 | H152: 201905
A153: 城厢镇 | B153: 许*兰 | D153: 子 | E153: 谢*生 | F153: 423 | H153: 201905
A154: 城厢镇 | B154: 陈*皮 | C154: 1 | D154: 本人 | E154: 陈*皮 | F154: 592 | G154: =C154*F154 -> 592 | H154: 201910
A155: 城厢镇 | B155: 许*财 | C155: 1 | D155: 本人 | E155: 许*财 | F155: 845 | G155: =C155*F155 -> 845 | H155: 202001
A156: 城厢镇 | B156: 吴*莲 | C156: 3 | D156: 本人 | E156: 吴*莲 | F156: 423 | G156: =C156*F156 -> 1269 | H156: 202009
A157: 城厢镇 | B157: 吴*莲 | D157: 子 | E157: 许*堂 | F157: 423 | H157: 202009
A158: 城厢镇 | B158: 吴*莲 | D158: 子 | E158: 许*炬 | F158: 423 | H158: 202009
A159: 城厢镇 | B159: 许* | C159: 3 | D159: 本人 | E159: 许* | F159: 592 | G159: =C159*F159 -> 1776 | H159: 202109
A160: 城厢镇 | B160: 许* | D160: 配偶 | E160: 王*红 | F160: 592 | H160: 202109
A161: 城厢镇 | B161: 许* | D161: 子 | E161: 许*琳 | F161: 592 | H161: 202109
A162: 城厢镇 | B162: 林*云 | C162: 4 | D162: 本人 | E162: 林*云 | F162: 423 | G162: =C162*F162 -> 1692 | H162: 202109
A163: 城厢镇 | B163: 林*云 | D163: 女 | E163: 许*妍 | F163: 423 | H163: 202109
A164: 城厢镇 | B164: 林*云 | D164: 女 | E164: 许*怡 | F164: 423 | H164: 202109
A165: 城厢镇 | B165: 林*云 | D165: 婆婆 | E165: 陈*菊 | F165: 423 | H165: 202406
A166: 城厢镇 | B166: 许*燕 | C166: 2 | D166: 本人 | E166: 许*燕 | F166: 592 | G166: =C166*F166 -> 1184 | H166: 202109
A167: 城厢镇 | B167: 许*燕 | D167: 兄弟姐妹 | E167: 许*杰 | F167: 592 | H167: 202109
A168: 城厢镇 | B168: 谢*利 | C168: 1 | D168: 本人 | E168: 谢*利 | F168: 592 | G168: =C168*F168 -> 592 | H168: 202109
A169: 城厢镇 | B169: 唐*娇 | C169: 1 | D169: 本人 | E169: 唐*娇 | F169: 845 | G169: 845 | H169: 202109
A170: 城厢镇 | B170: 许*灿 | C170: 1 | D170: 本人 | E170: 许*灿 | F170: 592 | G170: 592
A171: 城厢镇 | B171: 许*尚 | C171: 1 | D171: 本人 | E171: 许*尚 | F171: 845 | G171: 845
A172: 城厢镇 | B172: 许*艺 | C172: 1 | D172: 本人 | E172: 许*艺 | F172: 845 | G172: 845 | H172: 202006
A173: 城厢镇 | B173: 许*娇 | C173: 1 | D173: 本人 | E173: 许*娇 | F173: 845 | G173: 845 | H173: 201807
A174: 城厢镇 | B174: 许*清 | C174: 1 | D174: 本人 | E174: 许*清 | F174: 845 | G174: 845
A175: 城厢镇 | B175: 陈*清 | C175: 1 | D175: 本人 | E175: 陈*清 | F175: 592 | G175: 592
A176: 城厢镇 | B176: 高*蜜 | C176: 3 | D176: 本人 | E176: 高*蜜 | F176: 423 | G176: 1269
A177: 城厢镇 | B177: 高*蜜 | D177: 子 | E177: 许*盛 | F177: 423 | H177: 202207
A178: 城厢镇 | B178: 高*蜜 | D178: 女 | E178: 许*樱 | F178: 423 | H178: 202207
A179: 城厢镇 | B179: 沈*珠 | C179: 3 | D179: 本人 | E179: 沈*珠 | F179: 423 | G179: =C179*F179 -> 1269 | H179: 202007
A180: 城厢镇 | B180: 沈*珠 | D180: 女 | E180: 许*玲 | F180: 423 | H180: 202007
A181: 城厢镇 | B181: 沈*珠 | D181: 女 | E181: 许*玲 | F181: 423 | H181: 202007
A182: 城厢镇 | B182: 许*轮 | C182: 1 | D182: 本人 | E182: 许*轮 | F182: 592 | G182: =C182*F182 -> 592
A183: 城厢镇 | B183: 许*章 | C183: 1 | D183: 本人 | E183: 许*章 | F183: 592 | G183: =C183*F183 -> 592
A184: 城厢镇 | B184: 林*娥 | C184: 3 | D184: 本人 | E184: 林*娥 | F184: 423 | G184: =C184*F184 -> 1269 | H184: 202006
A185: 城厢镇 | B185: 林*娥 | D185: 配偶 | E185: 许*铿 | F185: 423 | H185: 202501
A186: 城厢镇 | B186: 林*娥 | D186: 女 | E186: 许*茹 | F186: 423 | H186: 202501
A187: 城厢镇 | B187: 许*滨 | C187: 4 | D187: 本人 | E187: 许*滨 | F187: 423 | G187: =C187*F187 -> 1692 | H187: 202006
A188: 城厢镇 | B188: 许*滨 | D188: 配偶 | E188: 郭*丽 | F188: 423 | H188: 202210
A189: 城厢镇 | B189: 许*滨 | D189: 女 | E189: 许*旗 | F189: 423 | H189: 202210
A190: 城厢镇 | B190: 许*滨 | D190: 子 | E190: 许*强 | F190: 423 | H190: 202210
A191: 城厢镇 | B191: 王*华 | C191: 2 | D191: 本人 | E191: 王*华 | F191: 423 | G191: =C191*F191 -> 846
A192: 城厢镇 | B192: 王*华 | D192: 配偶 | E192: 傅*春 | F192: 423
A193: 城厢镇 | B193: 王*明 | C193: 1 | D193: 本人 | E193: 王*明 | F193: 845 | G193: =C193*F193 -> 845
A194: 城厢镇 | B194: 柯*生 | C194: 1 | D194: 本人 | E194: 柯*生 | F194: 592 | G194: =C194*F194 -> 592
A195: 城厢镇 | B195: 柯*轩 | C195: 2 | D195: 本人 | E195: 柯*轩 | F195: 592 | G195: =C195*F195 -> 1184 | H195: 201601
A196: 城厢镇 | B196: 柯*轩 | D196: 兄弟姐妹 | E196: 柯*燕 | F196: 592 | H196: 201601
A197: 城厢镇 | B197: 陈*添 | C197: 1 | D197: 本人 | E197: 陈*添 | F197: 592 | G197: =C197*F197 -> 592
A198: 城厢镇 | B198: 陈*明 | C198: 2 | D198: 本人 | E198: 陈*明 | F198: 423 | G198: =C198*F198 -> 846 | H198: 201909
A199: 城厢镇 | B199: 陈*明 | D199: 子 | E199: 陈*廷 | F199: 423 | H199: 201909
A200: 城厢镇 | B200: 陈*泉 | C200: 3 | D200: 本人 | E200: 陈*泉 | F200: 423 | G200: =C200*F200 -> 1269
... 4300 more rows

Sheet 城市低保
A1: 全县2025年10月城市低保名册
A2: 编制单位：安溪县民政局
A3: 乡镇 | B3: 户主姓名 | C3: 保障人数 | D3: 与户主关系 | E3: 低保对象姓名 | F3: 每人保障金额(元) | G3: 每户发放金额 | H3: 起始保障年月
A4: 凤城镇 | B4: 张*生 | C4: 1 | D4: 本人 | E4: 张*生 | F4: 592 | G4: =C4*F4 -> 592
A5: 凤城镇 | B5: 刘*君 | C5: 1 | D5: 本人 | E5: 刘*君 | F5: 845 | G5: 845
A6: 凤城镇 | B6: 陈*地 | C6: 1 | D6: 本人 | E6: 陈*地 | F6: 592 | G6: 592 | H6: 202002
A7: 凤城镇 | B7: 吴*红 | C7: 1 | D7: 本人 | E7: 吴*红 | F7: 592 | G7: 592
A8: 凤城镇 | B8: 许*春 | C8: 1 | D8: 本人 | E8: 许*春 | F8: 845 | G8: 845
A9: 凤城镇 | B9: 林*明 | C9: 2 | D9: 本人 | E9: 林*明 | F9: 592 | G9: 1184
A10: 凤城镇 | B10: 林*明 | D10: 配偶 | E10: 吴*非 | F10: 592
A11: 凤城镇 | B11: 黄*燕 | C11: 1 | D11: 本人 | E11: 黄*燕 | F11: 845 | G11: =C11*F11 -> 845
A12: 凤城镇 | B12: 林*能 | C12: 1 | D12: 本人 | E12: 林*能 | F12: 592 | G12: 592 | H12: 202002
A13: 凤城镇 | B13: 陈*滨 | C13: 1 | D13: 本人 | E13: 陈*滨 | F13: 845 | G13: 845 | H13: 202012
A14: 凤城镇 | B14: 李*红 | C14: 1 | D14: 本人 | E14: 李*红 | F14: 845 | G14: 845 | H14: 202005
A15: 凤城镇 | B15: 吴*强 | C15: 1 | D15: 本人 | E15: 吴*强 | F15: 845 | G15: 845
A16: 凤城镇 | B16: 黄*豪 | C16: 1 | D16: 本人 | E16: 黄*豪 | F16: 592 | G16: 592
A17: 凤城镇 | B17: 陈*贤 | C17: 1 | D17: 本人 | E17: 陈*贤 | F17: 845 | G17: 845 | H17: 202012
A18: 凤城镇 | B18: 叶*福 | C18: 1 | D18: 本人 | E18: 叶*福 | F18: 592 | G18: 592
A19: 凤城镇 | B19: 黄*红 | C19: 1 | D19: 本人 | E19: 黄*红 | F19: 592 | G19: 592
A20: 凤城镇 | B20: 方*勇 | C20: 2 | D20: 本人 | E20: 方*勇 | F20: 592 | G20: 1184 | H20: 201601
A21: 凤城镇 | B21: 方*勇 | D21: 配偶 | E21: 蔡*玉 | F21: 592 | H21: 201601
A22: 凤城镇 | B22: 陈*荣 | C22: 2 | D22: 本人 | E22: 陈*荣 | F22: 592 | G22: =C22*F22 -> 1184 | H22: 202204
A23: 凤城镇 | B23: 陈*荣 | D23: 女 | E23: 陈*颍 | F23: 592 | H23: 202204
A24: 凤城镇 | B24: 黄*锴 | C24: 2 | D24: 本人 | E24: 黄*锴 | F24: 845 | G24: 1690 | H24: 202011
A25: 凤城镇 | B25: 黄*锴 | D25: 兄弟姐妹 | E25: 黄*妍 | F25: 845 | H25: 202011
A26: 凤城镇 | B26: 白*荣 | C26: 2 | D26: 本人 | E26: 白*荣 | F26: 592 | G26: 1184 | H26: 202102
A27: 凤城镇 | B27: 白*荣 | D27: 女 | E27: 白*怡 | F27: 592 | H27: 202102
A28: 凤城镇 | B28: 易*滨 | C28: 3 | D28: 本人 | E28: 易*滨 | F28: 592 | G28: =C28*F28 -> 1776
A29: 凤城镇 | B29: 易*滨 | D29: 配偶 | E29: 郑*桃 | F29: 592
A30: 凤城镇 | B30: 易*滨 | D30: 女 | E30: 易*茹 | F30: 592
A31: 凤城镇 | B31: 姜*英 | C31: 1 | D31: 本人 | E31: 姜*英 | F31: 592 | G31: =C31*F31 -> 592
A32: 凤城镇 | B32: 苏*雁 | C32: 1 | D32: 本人 | E32: 苏*雁 | F32: 592 | G32: =C32*F32 -> 592
A33: 凤城镇 | B33: 林*清 | C33: 1 | D33: 本人 | E33: 林*清 | F33: 592 | G33: =C33*F33 -> 592
A34: 凤城镇 | B34: 林*忠 | C34: 1 | D34: 本人 | E34: 林*忠 | F34: 592 | G34: 592
A35: 凤城镇 | B35: 谢*凤 | C35: 1 | D35: 本人 | E35: 谢*凤 | F35: 845 | G35: 845
A36: 凤城镇 | B36: 林*根 | C36: 1 | D36: 本人 | E36: 林*根 | F36: 592 | G36: 592
A37: 凤城镇 | B37: 吴*龙 | C37: 1 | D37: 本人 | E37: 吴*龙 | F37: 592 | G37: 592 | H37: 201907
A38: 凤城镇 | B38: 吴*忠 | C38: 3 | D38: 本人 | E38: 吴*忠 | F38: 592 | G38: 1776
A39: 凤城镇 | B39: 吴*忠 | D39: 女 | E39: 吴*燕 | F39: 592
A40: 凤城镇 | B40: 吴*忠 | D40: 配偶 | E40: 刘*琴 | F40: 592 | H40: 202312
A41: 凤城镇 | B41: 王*川 | C41: 1 | D41: 本人 | E41: 王*川 | F41: 592 | G41: =C41*F41 -> 592
A42: 凤城镇 | B42: 易*耀 | C42: 1 | D42: 本人 | E42: 易*耀 | F42: 845 | G42: =C42*F42 -> 845
A43: 凤城镇 | B43: 陈*美 | C43: 1 | D43: 本人 | E43: 陈*美 | F43: 845 | G43: =C43*F43 -> 845
A44: 凤城镇 | B44: 谢*贤 | C44: 1 | D44: 本人 | E44: 谢*贤 | F44: 592 | G44: 592 | H44: 201804
A45: 凤城镇 | B45: 李*宏 | C45: 1 | D45: 本人 | E45: 李*宏 | F45: 592 | G45: 592 | H45: 201810
A46: 凤城镇 | B46: 陈*忠 | C46: 1 | D46: 本人 | E46: 陈*忠 | F46: 592 | G46: 592
A47: 凤城镇 | B47: 张*红 | C47: 1 | D47: 本人 | E47: 张*红 | F47: 592 | G47: 592
A48: 凤城镇 | B48: 吴* | C48: 1 | D48: 本人 | E48: 吴* | F48: 592 | G48: 592
A49: 凤城镇 | B49: 陈*灿 | C49: 1 | D49: 本人 | E49: 陈*灿 | F49: 592 | G49: 592
A50: 凤城镇 | B50: 苏* | C50: 1 | D50: 本人 | E50: 苏* | F50: 592 | G50: 592
A51: 凤城镇 | B51: 纪*黎 | C51: 1 | D51: 本人 | E51: 纪*黎 | F51: 592 | G51: 592
A52: 凤城镇 | B52: 钟*阳 | C52: 4 | D52: 本人 | E52: 钟*阳 | F52: 592 | G52: 2368
A53: 凤城镇 | B53: 钟*阳 | D53: 配偶 | E53: 蔡*芹 | F53: 592
A54: 凤城镇 | B54: 钟*阳 | D54: 女 | E54: 钟*琪 | F54: 592
A55: 凤城镇 | B55: 钟*阳 | D55: 女 | E55: 钟*娜 | F55: 592 | H55: 201801
A56: 凤城镇 | B56: 林*红 | C56: 1 | D56: 本人 | E56: 林*红 | F56: 845 | G56: =C56*F56 -> 845
A57: 凤城镇 | B57: 陈*玲 | C57: 2 | D57: 本人 | E57: 陈*玲 | F57: 592 | G57: =C57*F57 -> 1184
A58: 凤城镇 | B58: 陈*玲 | D58: 祖孙 | E58: 叶*滨 | F58: 592 | H58: 202508
A59: 凤城镇 | B59: 黄*鹏 | C59: 2 | D59: 本人 | E59: 黄*鹏 | F59: 592 | G59: =C59*F59 -> 1184
A60: 凤城镇 | B60: 黄*鹏 | D60: 子 | E60: 黄*裕 | F60: 592
A61: 凤城镇 | B61: 谢*钦 | C61: 1 | D61: 本人 | E61: 谢*钦 | F61: 845 | G61: =C61*F61 -> 845
A62: 凤城镇 | B62: 周*金 | C62: 1 | D62: 本人 | E62: 周*金 | F62: 592 | G62: 592
A63: 凤城镇 | B63: 蔡*梅 | C63: 2 | D63: 本人 | E63: 蔡*梅 | F63: 592 | G63: 1184 | H63: 201702
A64: 凤城镇 | B64: 蔡*梅 | D64: 子 | E64: 王*轩 | F64: 592 | H64: 201601
A65: 凤城镇 | B65: 刘*容 | C65: 3 | D65: 本人 | E65: 刘*容 | F65: 592 | G65: =C65*F65 -> 1776 | H65: 201801
A66: 凤城镇 | B66: 刘*容 | D66: 女 | E66: 詹*丹 | F66: 592 | H66: 201801
A67: 凤城镇 | B67: 刘*容 | D67: 孙女 | E67: 黄*妍 | F67: 592 | H67: 201801
A68: 凤城镇 | B68: 殷*来 | C68: 1 | D68: 本人 | E68: 殷*来 | F68: 592 | G68: =C68*F68 -> 592 | H68: 201801
A69: 凤城镇 | B69: 谢*来 | C69: 5 | D69: 本人 | E69: 谢*来 | F69: 592 | G69: =C69*F69 -> 2960
A70: 凤城镇 | B70: 谢*来 | D70: 子 | E70: 谢*杰 | F70: 592
A71: 凤城镇 | B71: 谢*来 | D71: 配偶 | E71: 许*明 | F71: 592
A72: 凤城镇 | B72: 谢*来 | D72: 父女 | E72: 谢*阳 | F72: 592
A73: 凤城镇 | B73: 谢*来 | D73: 父女 | E73: 谢*萍 | F73: 592
A74: 凤城镇 | B74: 谢*川 | C74: 1 | D74: 本人 | E74: 谢*川 | F74: 592 | G74: =C74*F74 -> 592
A75: 凤城镇 | B75: 高*霜 | C75: 1 | D75: 本人 | E75: 高*霜 | F75: 592 | G75: =C75*F75 -> 592
A76: 凤城镇 | B76: 王*云 | C76: 1 | D76: 本人 | E76: 王*云 | F76: 592 | G76: =C76*F76 -> 592
A77: 凤城镇 | B77: 谢*美 | C77: 2 | D77: 本人 | E77: 谢*美 | F77: 592 | G77: =C77*F77 -> 1184
A78: 凤城镇 | B78: 谢*美 | D78: 子 | E78: 谢*超 | F78: 592
A79: 凤城镇 | B79: 吴*坤 | C79: 1 | D79: 本人 | E79: 吴*坤 | F79: 592 | G79: =C79*F79 -> 592 | H79: 201801
A80: 凤城镇 | B80: 陈*梅 | C80: 2 | D80: 本人 | E80: 陈*梅 | F80: 592 | G80: 1184
A81: 凤城镇 | B81: 陈*梅 | D81: 子 | E81: 陈*睿 | F81: 592
A82: 凤城镇 | B82: 陈*明 | C82: 1 | D82: 本人 | E82: 陈*明 | F82: 592 | G82: 592
A83: 凤城镇 | B83: 吴*环 | C83: 2 | D83: 本人 | E83: 吴*环 | F83: 592 | G83: 1184
A84: 凤城镇 | B84: 吴*环 | D84: 子 | E84: 詹*达 | F84: 592
A85: 凤城镇 | B85: 林*柅 | C85: 2 | D85: 本人 | E85: 林*柅 | F85: 592 | G85: =C85*F85 -> 1184
A86: 凤城镇 | B86: 林*柅 | D86: 配偶 | E86: 胡*梅 | F86: 592
A87: 凤城镇 | B87: 易*珍 | C87: 2 | D87: 本人 | E87: 易*珍 | F87: 845 | G87: =C87*F87 -> 1690
A88: 凤城镇 | B88: 易*珍 | D88: 孙子 | E88: 黄*豪 | F88: 845
A89: 凤城镇 | B89: 李* | C89: 1 | D89: 本人 | E89: 李* | F89: 845 | G89: =C89*F89 -> 845 | H89: 202105
A90: 凤城镇 | B90: 林*环 | C90: 3 | D90: 本人 | E90: 林*环 | F90: 592 | G90: =C90*F90 -> 1776
A91: 凤城镇 | B91: 林*环 | D91: 子 | E91: 王*成 | F91: 592
A92: 凤城镇 | B92: 林*环 | D92: 子 | E92: 王*祥 | F92: 592
A93: 凤城镇 | B93: 王*发 | C93: 1 | D93: 本人 | E93: 王*发 | F93: 592 | G93: =C93*F93 -> 592 | H93: 202002
A94: 凤城镇 | B94: 许*辉 | C94: 4 | D94: 本人 | E94: 许*辉 | F94: 592 | G94: =C94*F94 -> 2368 | H94: 202010
A95: 凤城镇 | B95: 许*辉 | D95: 配偶 | E95: 林*真 | F95: 592 | H95: 202010
A96: 凤城镇 | B96: 许*辉 | D96: 子 | E96: 许*腾 | F96: 592 | H96: 202010
A97: 凤城镇 | B97: 许*辉 | D97: 女 | E97: 许*娜 | F97: 592 | H97: 202010
A98: 凤城镇 | B98: 张*原 | C98: 1 | D98: 本人 | E98: 张*原 | F98: 592 | G98: =C98*F98 -> 592
A99: 凤城镇 | B99: 吴*云 | C99: 1 | D99: 本人 | E99: 吴*云 | F99: 592 | G99: =C99*F99 -> 592
A100: 凤城镇 | B100: 张*水 | C100: 3 | D100: 本人 | E100: 张*水 | F100: 592 | G100: =C100*F100 -> 1776 | H100: 201901
A101: 凤城镇 | B101: 张*水 | D101: 配偶 | E101: 陈*华 | F101: 592 | H101: 202010
A102: 凤城镇 | B102: 张*水 | D102: 子 | E102: 张*鑫 | F102: 592 | H102: 202010
A103: 凤城镇 | B103: 陈*娇 | C103: 3 | D103: 本人 | E103: 陈*娇 | F103: 592 | G103: =C103*F103 -> 1776 | H103: 201907
A104: 凤城镇 | B104: 陈*娇 | D104: 子 | E104: 张*森 | F104: 592 | H104: 201907
A105: 凤城镇 | B105: 陈*娇 | D105: 子 | E105: 张*林 | F105: 592 | H105: 201907
A106: 凤城镇 | B106: 张*兰 | C106: 1 | D106: 本人 | E106: 张*兰 | F106: 592 | G106: =C106*F106 -> 592 | H106: 202010
A107: 凤城镇 | B107: 张*萍 | C107: 1 | D107: 本人 | E107: 张*萍 | F107: 592 | G107: =C107*F107 -> 592 | H107: 202010
A108: 凤城镇 | B108: 陈*升 | C108: 1 | D108: 本人 | E108: 陈*升 | F108: 592 | G108: =C108*F108 -> 592
A109: 凤城镇 | B109: 陈*坚 | C109: 1 | D109: 本人 | E109: 陈*坚 | F109: 592 | G109: =C109*F109 -> 592
A110: 凤城镇 | B110: 殷*敏 | C110: 2 | D110: 本人 | E110: 殷*敏 | F110: 845 | G110: =C110*F110 -> 1690
A111: 凤城镇 | B111: 殷*敏 | D111: 女 | E111: 陈*玲 | F111: 845
A112: 凤城镇 | B112: 陈*昌 | C112: 1 | D112: 本人 | E112: 陈*昌 | F112: 592 | G112: =C112*F112 -> 592
A113: 凤城镇 | B113: 陈*杰 | C113: 1 | D113: 本人 | E113: 陈*杰 | F113: 592 | G113: 592
A114: 凤城镇 | B114: 李*添 | C114: 3 | D114: 本人 | E114: 李*添 | F114: 592 | G114: 1776 | H114: 202102
A115: 凤城镇 | B115: 李*添 | D115: 其他 | E115: 余*娥 | F115: 592 | H115: 202102
A116: 凤城镇 | B116: 李*添 | D116: 其他 | E116: 李*熙 | F116: 592 | H116: 202102
A117: 凤城镇 | B117: 何*毅 | C117: 1 | D117: 本人 | E117: 何*毅 | F117: 845 | G117: =C117*F117 -> 845
A118: 凤城镇 | B118: 周*榕 | C118: 1 | D118: 本人 | E118: 周*榕 | F118: 845 | G118: =C118*F118 -> 845 | H118: 202210
A119: 凤城镇 | B119: 陈*铭 | C119: 1 | D119: 本人 | E119: 陈*铭 | F119: 845 | G119: 845 | H119: 202210
A120: 凤城镇 | B120: 陈*全 | C120: 1 | D120: 本人 | E120: 陈*全 | F120: 845 | G120: 845 | H120: 202211
A121: 凤城镇 | B121: 苏*义 | C121: 1 | D121: 本人 | E121: 苏*义 | F121: 845 | G121: 845 | H121: 202211
A122: 凤城镇 | B122: 许*彰 | C122: 1 | D122: 本人 | E122: 许*彰 | F122: 845 | G122: 845 | H122: 202212
A123: 凤城镇 | B123: 许*城 | C123: 1 | D123: 本人 | E123: 许*城 | F123: 845 | G123: 845 | H123: 202303
A124: 凤城镇 | B124: 陈*雯 | C124: 1 | D124: 本人 | E124: 陈*雯 | F124: 845 | G124: 845 | H124: 202304
A125: 凤城镇 | B125: 陈*林 | C125: 1 | D125: 本人 | E125: 陈*林 | F125: 845 | G125: 845 | H125: 202308
A126: 凤城镇 | B126: 陈*彩 | C126: 1 | D126: 本人 | E126: 陈*彩 | F126: 845 | G126: 845 | H126: 202308
A127: 凤城镇 | B127: 陈*雅 | C127: 1 | D127: 本人 | E127: 陈*雅 | F127: 845 | G127: =C127*F127 -> 845 | H127: 202309
A128: 凤城镇 | B128: 林*明 | C128: 3 | D128: 本人 | E128: 林*明 | F128: 592 | G128: 1776 | H128: 202309
A129: 凤城镇 | B129: 林*明 | D129: 女儿 | E129: 林*妍 | F129: 592 | H129: 202309
A130: 凤城镇 | B130: 林*明 | D130: 儿子 | E130: 林*辉 | F130: 592 | H130: 202309
A131: 凤城镇 | B131: 李*海 | C131: 2 | D131: 本人 | E131: 李*海 | F131: 592 | G131: 1184 | H131: 202309
A132: 凤城镇 | B132: 李*海 | D132: 配偶 | E132: 林*兰 | F132: 592 | H132: 202309
A133: 凤城镇 | B133: 洪*兰 | C133: 4 | D133: 本人 | E133: 洪*兰 | F133: 592 | G133: =C133*F133 -> 2368 | H133: 202310
A134: 凤城镇 | B134: 洪*兰 | D134: 儿子 | E134: 孙*宸 | F134: 592 | H134: 202310
A135: 凤城镇 | B135: 洪*兰 | D135: 儿子 | E135: 孙*辉 | F135: 592 | H135: 202310
A136: 凤城镇 | B136: 洪*兰 | D136: 女儿 | E136: 孙*萱 | F136: 592 | H136: 202310
A137: 凤城镇 | B137: 潭*敏 | C137: 2 | D137: 本人 | E137: 潭*敏 | F137: 592 | G137: =C137*F137 -> 1184 | H137: 202311
A138: 凤城镇 | B138: 潭*敏 | D138: 孙女 | E138: 陈*涵 | F138: 592 | H138: 202311
A139: 凤城镇 | B139: 王*源 | C139: 3 | D139: 本人 | E139: 王*源 | F139: 592 | G139: =C139*F139 -> 1776 | H139: 202311
A140: 凤城镇 | B140: 王*源 | D140: 配偶 | E140: 谢*茹 | F140: 592 | H140: 202311
A141: 凤城镇 | B141: 王*源 | D141: 女儿 | E141: 王*欣 | F141: 592 | H141: 202311
A142: 凤城镇 | B142: 林*静 | C142: 4 | D142: 本人 | E142: 林*静 | F142: 592 | G142: =C142*F142 -> 2368 | H142: 202311
A143: 凤城镇 | B143: 林*静 | D143: 女儿 | E143: 陈*萱 | F143: 592 | H143: 202311
A144: 凤城镇 | B144: 林*静 | D144: 女儿 | E144: 陈*欣 | F144: 592 | H144: 202311
A145: 凤城镇 | B145: 林*静 | D145: 儿子 | E145: 陈*祥 | F145: 592 | H145: 202311
A146: 凤城镇 | B146: 王*慧 | C146: 4 | D146: 本人 | E146: 王*慧 | F146: 592 | G146: =C146*F146 -> 2368 | H146: 202312
A147: 凤城镇 | B147: 王*慧 | D147: 父母 | E147: 王*灵 | F147: 592 | H147: 202312
A148: 凤城镇 | B148: 王*慧 | D148: 父母 | E148: 陈*梅 | F148: 592 | H148: 202312
A149: 凤城镇 | B149: 王*慧 | D149: 兄弟姐妹 | E149: 王*鹏 | F149: 592 | H149: 202312
A150: 凤城镇 | B150: 张*忠 | C150: 3 | D150: 本人 | E150: 张*忠 | F150: 592 | G150: =C150*F150 -> 1776 | H150: 202312
A151: 凤城镇 | B151: 张*忠 | D151: 儿子 | E151: 张*杰 | F151: 592 | H151: 202312
A152: 凤城镇 | B152: 张*忠 | D152: 女儿 | E152: 张*馨 | F152: 592 | H152: 202312
A153: 凤城镇 | B153: 吴* | C153: 3 | D153: 本人 | E153: 吴* | F153: 592 | G153: =C153*F153 -> 1776 | H153: 202312
A154: 凤城镇 | B154: 吴* | D154: 女儿 | E154: 吴*媛 | F154: 592 | H154: 202312
A155: 凤城镇 | B155: 吴* | D155: 女儿 | E155: 吴*瑩 | F155: 592 | H155: 202312
A156: 凤城镇 | B156: 李*妍 | C156: 1 | D156: 本人 | E156: 李*妍 | F156: 845 | G156: =C156*F156 -> 845 | H156: 202404
A157: 凤城镇 | B157: 李*芬 | C157: 3 | D157: 本人 | E157: 李*芬 | F157: 592 | G157: =C157*F157 -> 1776 | H157: 202404
A158: 凤城镇 | B158: 李*芬 | D158: 母子 | E158: 陈*镛 | F158: 592 | H158: 202404
A159: 凤城镇 | B159: 李*芬 | D159: 母子 | E159: 陈*锴 | F159: 592 | H159: 202404
A160: 凤城镇 | B160: 张*毅 | C160: 1 | D160: 本人 | E160: 张*毅 | F160: 845 | G160: =C160*F160 -> 845 | H160: 202404
A161: 凤城镇 | B161: 张*地 | C161: 1 | D161: 本人 | E161: 张*地 | F161: 845 | G161: =C161*F161 -> 845 | H161: 202404
A162: 凤城镇 | B162: 陈*英 | C162: 3 | D162: 本人 | E162: 陈*英 | F162: 592 | G162: =C162*F162 -> 1776 | H162: 202404
A163: 凤城镇 | B163: 陈*英 | D163: 母子 | E163: 谢*尧 | F163: 592 | H163: 202404
A164: 凤城镇 | B164: 陈*英 | D164: 母女 | E164: 谢*祺 | F164: 592 | H164: 202404
A165: 凤城镇 | B165: 吴*南 | C165: 1 | D165: 本人 | E165: 吴*南 | F165: 845 | G165: =C165*F165 -> 845 | H165: 202405
A166: 凤城镇 | B166: 庄*清 | C166: 2 | D166: 本人 | E166: 庄*清 | F166: 592 | G166: =C166*F166 -> 1184 | H166: 202411
A167: 凤城镇 | B167: 庄*清 | D167: 儿子 | E167: 王* | F167: 592 | H167: 202411
A168: 凤城镇 | B168: 黄*女 | C168: 1 | D168: 本人 | E168: 黄*女 | F168: 845 | G168: =C168*F168 -> 845 | H168: 202411
A169: 凤城镇 | B169: 陈*伟 | C169: 1 | D169: 本人 | E169: 陈*伟 | F169: 845 | G169: =C169*F169 -> 845 | H169: 202411
A170: 凤城镇 | B170: 张*滢 | C170: 2 | D170: 本人 | E170: 张*滢 | F170: 592 | G170: =C170*F170 -> 1184 | H170: 202411
A171: 凤城镇 | B171: 张*滢 | D171: 儿子 | E171: 张*鑫 | F171: 592 | H171: 202411
A172: 凤城镇 | B172: 高*彤 | C172: 3 | D172: 本人 | E172: 高*彤 | F172: 423 | G172: =C172*F172 -> 1269 | H172: 202411
A173: 凤城镇 | B173: 高*彤 | D173: 父亲 | E173: 高*超 | F173: 423 | H173: 202411
A174: 凤城镇 | B174: 高*彤 | D174: 姐妹 | E174: 高*聆 | F174: 423 | H174: 202411
A175: 凤城镇 | B175: 龚*萍 | C175: 2 | D175: 本人 | E175: 龚*萍 | F175: 592 | G175: =C175*F175 -> 1184 | H175: 202504
A176: 凤城镇 | B176: 龚*萍 | D176: 母子 | E176: 龚*宸 | F176: 592 | H176: 202508
A177: 凤城镇 | B177: 林*鑫 | C177: 2 | D177: 本人 | E177: 林*鑫 | F177: 592 | G177: =C177*F177 -> 1184 | H177: 202504
A178: 凤城镇 | B178: 林*鑫 | D178: 兄弟 | E178: 林*鑫 | F178: 592 | H178: 202504
A179: 凤城镇 | B179: 陈*琪 | C179: 2 | D179: 本人 | E179: 陈*琪 | F179: 592 | G179: =C179*F179 -> 1184 | H179: 202508
A180: 凤城镇 | B180: 陈*琪 | D180: 姐弟 | E180: 陈*宇 | F180: 592 | H180: 202508
A181: 蓬莱镇 | B181: 张*英 | C181: 1 | D181: 本人 | E181: 张*英 | F181: 845 | G181: =C181*F181 -> 845
A182: 蓬莱镇 | B182: 易*月 | C182: 2 | D182: 本人 | E182: 易*月 | F182: 592 | G182: =C182*F182 -> 1184
A183: 蓬莱镇 | B183: 易*月 | D183: 配偶 | E183: 杨*波 | F183: 592
A184: 蓬莱镇 | B184: 刘*城 | C184: 3 | D184: 本人 | E184: 刘*城 | F184: 592 | G184: =C184*F184 -> 1776
A185: 蓬莱镇 | B185: 刘*城 | D185: 子 | E185: 刘*权 | F185: 592
A186: 蓬莱镇 | B186: 刘*城 | D186: 女 | E186: 刘*灵 | F186: 592 | H186: 201801
A187: 蓬莱镇 | B187: 林*坤 | C187: 1 | D187: 本人 | E187: 林*坤 | F187: 845 | G187: =C187*F187 -> 845
A188: 湖头镇 | B188: 郭*珍 | C188: 1 | D188: 本人 | E188: 郭*珍 | F188: 845 | G188: =C188*F188 -> 845
A189: 湖头镇 | B189: 何* | C189: 1 | D189: 本人 | E189: 何* | F189: 845 | G189: =C189*F189 -> 845
A190: 湖头镇 | B190: 林* | C190: 1 | D190: 本人 | E190: 林* | F190: 845 | G190: =C190*F190 -> 845
A191: 湖头镇 | B191: 陈*能 | C191: 1 | D191: 本人 | E191: 陈*能 | F191: 845 | G191: 845
A192: 湖头镇 | B192: 李*城 | C192: 1 | D192: 本人 | E192: 李*城 | F192: 845 | G192: 845
A193: 湖头镇 | B193: 李*双 | C193: 1 | D193: 本人 | E193: 李*双 | F193: 845 | G193: 845
A194: 湖头镇 | B194: 许* | C194: 1 | D194: 本人 | E194: 许* | F194: 592 | G194: 592
A195: 湖头镇 | B195: 许* | C195: 5 | D195: 本人 | E195: 许* | F195: 592 | G195: 2960
A196: 湖头镇 | B196: 许* | D196: 孙子 | E196: 李*宇 | F196: 592
A197: 湖头镇 | B197: 许* | D197: 孙女 | E197: 李*静 | F197: 592 | H197: 202510
A198: 湖头镇 | B198: 许* | D198: 子 | E198: 李*阳 | F198: 592 | H198: 202510
A199: 湖头镇 | B199: 许* | D199: 儿媳 | E199: 陈*月 | F199: 592 | H199: 202510
A200: 湖头镇 | B200: 李*凤 | C200: 1 | D200: 本人 | E200: 李*凤 | F200: 845 | G200: =C200*F200 -> 845
... 123 more rows

Sheet 城乡低保汇总表
A1: 2025年10月份全县城乡低保有关情况汇总表（送财政）
A2: 报送时间：2025年10月11日 单位:元
A3: 乡镇 名称 | B3: 农村低保 | E3: 城市低保 | H3: 农村低保和城市低保月合计金额
B4: 户数 | C4: 人数 | D4: 月金额 | E4: 户数 | F4: 人数 | G4: 月金额
A5: 凤城 | B5: 60 | C5: 105 | D5: 70928 | E5: 109 | F5: 177 | G5: 113385 | H5: =D5+G5 -> 184313
A6: 城厢 | B6: 460 | C6: 703 | D6: 406045 | E6: 1 | F6: 1 | G6: 845 | H6: =D6+G6 -> 406890
A7: 参内 | B7: 209 | C7: 398 | D7: 269493 | E7: 1 | F7: 1 | G7: 845 | H7: 270338
A8: 魁斗 | B8: 224 | C8: 389 | D8: 237748 | E8: 1 | F8: 2 | G8: 1184 | H8: 238932
A9: 蓬莱 | B9: 625 | C9: 1159 | D9: 674939 | E9: 4 | F9: 7 | G9: 4650 | H9: 679589
A10: 金谷 | B10: 469 | C10: 800 | D10: 432138 | E10: 3 | F10: 4 | G10: 3127 | H10: 435265
A11: 湖头 | B11: 791 | C11: 1474 | D11: 1044020 | E11: 45 | F11: 68 | G11: 48858 | H11: 1092878
A12: 湖上 | B12: 259 | C12: 453 | D12: 281798 | H12: 281798
A13: 白濑 | B13: 135 | C13: 281 | D13: 181601 | H13: 181601
A14: 剑斗 | B14: 400 | C14: 754 | D14: 474793 | H14: 474793
A15: 感德 | B15: 436 | C15: 862 | D15: 506049 | E15: 1 | F15: 1 | G15: 592 | H15: 506641
A16: 桃舟 | B16: 176 | C16: 307 | D16: 190423 | H16: 190423
A17: 福田 | B17: 51 | C17: 98 | D17: 63409 | E17: 13 | F17: 22 | G17: 13528 | H17: 76937
A18: 长卿 | B18: 536 | C18: 1121 | D18: 630917 | H18: 630917
A19: 蓝田 | B19: 260 | C19: 505 | D19: 293071 | E19: 1 | F19: 1 | G19: 592 | H19: 293663
A20: 祥华 | B20: 349 | C20: 637 | D20: 394429 | E20: 1 | F20: 1 | G20: 845 | H20: 395274
A21: 官桥 | B21: 718 | C21: 1274 | D21: 821612 | E21: 4 | F21: 5 | G21: 4225 | H21: 825837
A22: 龙门 | B22: 836 | C22: 1264 | D22: 805888 | E22: 2 | F22: 2 | G22: 1184 | H22: 807072
A23: 虎邱 | B23: 427 | C23: 867 | D23: 539233 | E23: 1 | F23: 2 | G23: 1690 | H23: 540923
A24: 西坪 | B24: 615 | C24: 940 | D24: 530588 | E24: 3 | F24: 4 | G24: 2621 | H24: 533209
A25: 尚卿 | B25: 285 | C25: 630 | D25: 391708 | H25: 391708
A26: 大坪 | B26: 134 | C26: 189 | D26: 110088 | E26: 1 | F26: 1 | G26: 592 | H26: 110680
A27: 芦田 | B27: 166 | C27: 312 | D27: 204002 | H27: 204002
A28: 龙涓 | B28: 733 | C28: 1093 | D28: 687723 | E28: 19 | F28: 20 | G28: 12599 | H28: 700322
A29: 合计 | B29: =SUM(B5:B28) -> 9354 | C29: 16615 | D29: 10242643 | E29: 210 | F29: 319 | G29: 211362 | H29: 10454005
A30: 单位负责人： 分管领导： 制表人：
